bitfinex-derivatives/quotes_SOLF0:USTF0_20241010
["timestamp","ask_amount","ask_price","bid_price","bid_amount"]
[1728553682273,87.36595012,138.29,138.25,14.7502]
[1728553682476,76.23595012,138.29,138.25,11.13]
[1728553682986,87.36595012,138.29,138.24,11.13]
[1728553683476,87.36595012,138.29,138.21,5.32]
[1728553683477,11.13,138.25,138.21,5.32]
[1728553683668,11.13,138.24,138.21,5.32]
[1728553683870,11.13,138.24,138.2,11.13]
[1728553684278,3.6213,138.22,138.19,14.7518]
[1728553684478,11.13,138.23,138.19,11.13]
[1728553684869,3.6214,138.21,138.19,11.13]
[1728553685277,11.13,138.23,138.19,11.13]
[1728553685477,3.6212,138.22,138.19,14.7519]
[1728553685679,11.13,138.24,138.2,11.13]
[1728553686079,3.621,138.23,138.2,14.7515]
[1728553687381,3.6214,138.21,138.19,3.6219]
[1728553687685,11.13,138.24,138.19,14.7519]
[1728553687983,11.13,138.24,138.19,11.13]
[1728553688285,11.13,138.24,138.2,11.13]
[1728553688471,11.13,138.24,138.2,14.7516]
[1728553688472,3.6211,138.23,138.2,14.7516]
[1728553690083,3.6206,138.24,138.22,3.6211]
[1728553690287,11.13,138.27,138.22,11.13]
[1728553690483,0.12502,138.29,138.24,11.13]
[1728553690688,3.6199,138.27,138.24,14.7505]
[1728553691691,16.57502,138.29,138.24,11.13]
[1728553691889,0.12502,138.29,138.26,3.62]
[1728553693395,3.74442,138.29,138.26,3.62]
[1728553694595,3.6196,138.28,138.26,3.62]
[1728553694990,0.12502,138.29,138.26,3.62]
[1728553695193,3.74442,138.29,138.26,3.62]
[1728553697102,0.12502,138.29,138.26,3.62]
[1728553697395,3.6196,138.28,138.26,3.62]
[1728553699492,3.6196,138.28,138.25,3.6202]
[1728553700393,0.12502,138.29,138.24,5.32]
[1728553700693,0.12502,138.29,138.27,3.6197]
[1728553701494,3.74432,138.29,138.27,3.6197]
[1728553701994,0.12502,138.29,138.23,18.7809]
[1728553702201,3.6202,138.26,138.24,5.32]
[1728553703402,3.6202,138.26,138.24,3.6206]
[1728553703593,3.67159289,138.27,138.21,1.422]
[1728553703801,17.37,138.26,138.19,5.32]
[1728553704098,21.06910359,138.26,138.19,5.32]
[1728553704301,17.37,138.24,138.19,5.32]
[1728553705209,3.6213,138.22,138.19,8.9419]
[1728553706305,3.621,138.23,138.19,8.9419]
[1728553706806,3.621,138.23,138.2,3.6216]
[1728553710611,3.6212,138.22,138.19,8.9418]
[1728553712613,3.6212,138.22,138.19,20.0618]
[1728553712811,10.30788434,138.27,138.2,3.6216]
[1728553713009,1.47422,138.29,138.19,5.32]
[1728553713312,16.56502,138.29,138.24,11.12]
[1728553713505,3.6201,138.26,138.24,11.12]
[1728553713712,5.44502,138.29,138.25,11.12]
[1728553714013,5.44502,138.29,138.23,1.3742]
[1728553714014,3.6196,138.28,138.27,11.12]
[1728553714216,0.12502,138.29,138.27,11.12]
[1728553715013,3.6195,138.28,138.27,11.12]
[1728553715518,0.12502,138.29,138.27,11.12]
[1728553716116,3.74442,138.29,138.27,11.12]
[1728553716419,3.74442,138.29,138.27,3.6198]
[1728553718215,3.74442,138.29,138.26,3.6199]
[1728553721115,0.12502,138.29,138.26,3.6199]
[1728553721317,3.6195,138.28,138.26,3.6199]
[1728553723519,3.62,138.27,138.24,3.6205]
[1728553723822,3.62,138.27,138.23,2.8384]
[1728553724328,3.6197,138.28,138.25,3.6203]
[1728553726126,0.12502,138.29,138.25,5.32]
[1728553726622,0.12502,138.29,138.26,17.36]
[1728553726820,0.12502,138.29,138.27,3.6196]
[1728553731431,0.12502,138.29,138.28,3.6195]
[1728553731632,0.12502,138.29,138.28,20.9795]
[1728553731930,0.12502,138.29,138.28,26.2995]
[1728553734529,3.6184,138.33,138.3,3.619]
[1728553735626,0.12502,138.35,138.3,17.36]
[1728553736421,0.12502,138.35,138.33,11.12]
[1728553736730,3.74282,138.35,138.33,11.12]
[1728553737225,0.12502,138.35,138.33,14.738]
[1728553738328,0.12502,138.35,138.31,5.32]
[1728553738329,0.12502,138.35,138.34,11.12]
[1728553738535,0.12502,138.35,138.34,14.738]
[1728553738929,79.68070077,138.38,138.34,16.44]
[1728553738930,76.06370077,138.38,138.34,16.44]
[1728553739229,76.06370077,138.38,138.37,14.7372]
[1728553739620,0.12502,138.41,138.38,3.6169]
[1728553740026,3.74122,138.41,138.38,3.6169]
[1728553740223,3.74122,138.41,138.39,11.12]
[1728553740525,0.12502,138.41,138.4,11.12]
[1728553740723,0.12502,138.41,138.38,5.3]
[1728553740724,0.12502,138.41,138.38,16.42]
[1728553741123,0.12502,138.41,138.39,3.6166]
[1728553741321,0.12502,138.41,138.39,14.7366]
[1728553742621,0.12502,138.41,138.38,16.42]
[1728553742926,3.74122,138.41,138.38,16.42]
[1728553743333,3.74122,138.41,138.39,11.12]
[1728553743834,0.12502,138.41,138.39,11.12]
[1728553744335,0.12502,138.41,138.39,14.7366]
[1728553745232,11.24502,138.41,138.38,5.3]
[1728553745729,0.12502,138.41,138.4,11.12]
[1728553745932,0.12502,138.41,138.4,14.7364]
[1728553748531,0.12502,138.41,138.4,3.6164]
[1728553751040,0.12502,138.41,138.38,8.9168]
[1728553751232,0.12502,138.41,138.38,5.3]
[1728553751734,3.6165,138.4,138.37,8.9171]
[1728553752348,3.6164,138.4,138.37,5.3]
[1728553753038,3.6164,138.4,138.37,8.917]
[1728553753644,0.12502,138.41,138.38,3.6168]
[1728553753645,3.74122,138.41,138.38,3.6168]
[1728553753844,0.12502,138.41,138.37,22.65]
[1728553754541,0.12502,138.41,138.39,3.6166]
[1728553754740,0.12502,138.41,138.37,22.65]
[1728553755940,3.6164,138.4,138.37,26.2672]
[1728553756243,0.12502,138.41,138.37,22.65]
[1728553756746,3.6164,138.4,138.37,26.2672]
[1728553757429,3.6164,138.4,138.37,20.9672]
[1728553757629,3.6164,138.4,138.35,6.45810839]
[1728553757630,3.82923466,138.41,138.35,1.4302]
[1728553757831,17.35,138.4,138.32,17.35]
[1728553758034,17.35,138.4,138.33,5.3]
[1728553759138,3.6179,138.35,138.33,5.3]
[1728553759532,17.35,138.4,138.33,5.3]
[1728553759732,3.6179,138.35,138.33,5.3]
[1728553760241,17.35,138.4,138.34,3.6179]
[1728553760446,3.6174,138.37,138.34,3.6179]
[1728553760649,5.42502,138.41,138.34,17.35]
[1728553760836,3.6172,138.37,138.35,3.6176]
[1728553761041,5.42502,138.41,138.35,3.6176]
[1728553761241,5.42502,138.41,138.36,17.35]
[1728553761443,3.6166,138.4,138.36,22.65]
[1728553761647,5.42502,138.41,138.36,22.65]
[1728553761848,0.12502,138.41,138.36,22.65]
[1728553762043,3.74132,138.41,138.38,3.6168]
[1728553763648,3.6165,138.4,138.36,22.65]
[1728553763840,3.6165,138.4,138.37,3.6171]
[1728553764337,3.6167,138.39,138.36,26.2673]
[1728553764743,0.12502,138.41,138.36,22.65]
[1728553765243,3.6166,138.4,138.37,3.6171]
[1728553765643,0.12502,138.41,138.37,3.6171]
[1728553765843,3.6166,138.4,138.37,3.6171]
[1728553766148,0.12502,138.41,138.37,3.6171]
[1728553766539,3.6168,138.39,138.36,20.9673]
[1728553768544,21.11827516,138.41,138.34,3.6178]
[1728553768849,22.77502,138.41,138.33,5.3]
[1728553769049,3.6173,138.37,138.34,3.6178]
[1728553769243,3.6173,138.37,138.33,22.65]
[1728553770548,3.6173,138.37,138.34,3.6179]
[1728553772555,3.6175,138.36,138.34,3.6179]
[1728553772850,3.6175,138.36,138.33,5.3]
[1728553773055,20.91926387,138.4,138.32,5.3]
[1728553773255,3.6179,138.35,138.32,5.3]
[1728553773647,3.6179,138.35,138.32,8.9183]
[1728553774355,3.618,138.34,138.32,8.9183]
[1728553774757,5.3,138.38,138.32,8.9183]
[1728553775057,3.6178,138.35,138.32,8.9183]
[1728553775855,22.65,138.38,138.32,5.3]
[1728553776247,3.6182,138.33,138.32,5.3]
[1728553776653,3.6182,138.33,138.3,6.3987]
[1728553777951,3.6182,138.33,138.3,2.7799]
[1728553778148,3.6182,138.33,138.31,3.6187]
[1728553779147,24.0524,138.38,138.3,2.7799]
[1728553779453,6.7024,138.38,138.3,2.7799]
[1728553779758,6.7024,138.38,138.31,3.6185]
[1728553779957,6.7024,138.38,138.3,2.7799]
[1728553779958,24.0524,138.38,138.3,2.7799]
[1728553780256,25.4169,138.38,138.3,2.7799]
[1728553780556,25.4169,138.38,138.31,3.6187]
[1728553781159,3.6181,138.34,138.31,3.6187]
[1728553781855,3.6186,138.32,138.3,2.7799]
[1728553782160,25.4169,138.38,138.3,2.7799]
[1728553782460,3.6183,138.33,138.31,11.12]
[1728553784463,3.6185,138.32,138.3,12.5606]
[1728553786058,11.12,138.34,138.3,12.5606]
[1728553786256,3.6183,138.33,138.3,16.1795]
[1728553786558,3.6183,138.33,138.31,11.12]
[1728553787360,3.6181,138.34,138.32,11.12]
[1728553788059,3.6181,138.34,138.32,14.7385]
[1728553788759,3.6181,138.34,138.32,11.12]
[1728553789868,3.6178,138.35,138.33,14.7382]
[1728553792255,19.1869,138.38,138.33,11.12]
[1728553792457,3.6173,138.37,138.34,14.7378]
[1728553796272,5.3,138.38,138.34,14.7378]
[1728553796575,3.6175,138.36,138.34,14.7378]
[1728553798062,3.6175,138.36,138.34,11.12]
[1728553800672,16.42,138.38,138.34,11.12]
[1728553800673,3.6173,138.37,138.34,14.7378]
[1728553800876,16.42,138.38,138.34,14.7378]
[1728553801071,16.42,138.38,138.34,11.12]
[1728553801279,11.12,138.37,138.33,11.12]
[1728553801766,11.12,138.37,138.33,14.7381]
[1728553801970,76.05665092,138.39,138.35,11.12]
[1728553802371,3.6171,138.38,138.36,3.6174]
[1728553803069,79.67345092,138.39,138.35,11.12]
[1728553803269,79.67345092,138.39,138.37,3.6171]
[1728553803576,76.05665092,138.39,138.38,11.12]
[1728553803777,76.05665092,138.39,138.38,14.7369]
[1728553803972,0.12502,138.41,138.38,11.12]
[1728553804276,0.12502,138.41,138.4,11.12]
[1728553804471,3.74132,138.41,138.4,11.12]
[1728553804669,3.74132,138.41,138.39,11.12]
[1728553805066,0.12502,138.41,138.39,11.12]
[1728553805266,3.74122,138.41,138.38,3.6167]
[1728553805477,0.12502,138.47,138.4,11.12]
[1728553805673,0.12502,138.47,138.44,11.12]
[1728553806280,0.12502,138.47,138.45,11.12]
[1728553806477,0.12502,138.47,138.45,14.7349]
[1728553806680,0.12502,138.47,138.46,11.12]
[1728553807281,0.12502,138.47,138.46,14.7348]
[1728553807885,0.12502,138.47,138.46,11.12]
[1728553808282,0.12502,138.47,138.46,14.7348]
[1728553808587,0.12502,138.47,138.46,3.6148]
[1728553808883,0.12502,138.47,138.45,17.34]
[1728553809077,0.12502,138.47,138.43,17.34]
[1728553809278,3.615,138.46,138.42,22.64]
[1728553809889,3.615,138.46,138.42,26.2557]
[1728553810586,0.12502,138.47,138.41,2.8788]
[1728553810783,0.12502,138.47,138.42,5.3]
[1728553812486,3.6152,138.45,138.42,26.2558]
[1728553812888,0.12502,138.47,138.42,22.64]
[1728553813189,3.615,138.46,138.43,3.6156]
[1728553813481,3.6152,138.45,138.42,26.2558]
[1728553813889,3.6152,138.45,138.42,22.64]
[1728553814890,3.6152,138.45,138.42,26.2558]
[1728553815387,3.6152,138.45,138.42,22.64]
[1728553816189,0.12502,138.47,138.42,22.64]
[1728553816390,0.12502,138.47,138.44,3.6152]
[1728553816590,0.12502,138.47,138.42,22.64]
[1728553817092,3.6149,138.46,138.43,3.6155]
[1728553818091,3.73962,138.47,138.44,20.9553]
[1728553819480,3.6148,138.46,138.44,20.9553]
[1728553819884,3.6148,138.46,138.44,17.34]
[1728553821495,0.12502,138.47,138.44,17.34]
[1728553821797,3.73972,138.47,138.44,20.9553]
[1728553822184,0.12502,138.47,138.44,20.9553]
[1728553822381,3.6149,138.46,138.44,20.9553]
[1728553823588,0.12502,138.47,138.44,20.9553]
[1728553823791,0.12502,138.47,138.43,3.6155]
[1728553824097,0.12502,138.47,138.42,22.64]
[1728553824591,0.12502,138.47,138.42,26.2558]
[1728553825385,0.12502,138.47,138.43,3.6155]
[1728553825787,3.615,138.46,138.43,3.6155]
[1728553826102,3.615,138.46,138.44,3.6152]
[1728553826396,0.12502,138.47,138.44,17.34]
[1728553826397,3.73972,138.47,138.44,17.34]
[1728553827406,3.6148,138.46,138.44,20.9552]
[1728553827690,0.12502,138.47,138.44,17.34]
[1728553828097,0.12502,138.47,138.45,5.3]
[1728553828597,0.12502,138.47,138.46,1.3355]
[1728553829189,118.96353706,138.53,138.46,22.2903]
[1728553829396,124.26353706,138.53,138.46,20.0428]
[1728553830196,3.6142,138.49,138.47,3.6145]
[1728553831301,3.6142,138.49,138.46,20.0428]
[1728553831502,3.6142,138.49,138.46,23.6575]
[1728553832188,3.6142,138.49,138.47,3.6144]
[1728553832997,3.6139,138.5,138.47,3.6144]
[1728553833196,118.96353706,138.53,138.47,3.6144]
[1728553833998,3.6134,138.52,138.47,3.6144]
[1728553834202,118.96353706,138.53,138.47,3.6144]
[1728553835199,3.614,138.5,138.47,3.6144]
[1728553835502,0.12502,138.53,138.48,20.9542]
[1728553835695,3.6136,138.51,138.48,22.64]
[1728553835894,0.12502,138.53,138.48,22.64]
[1728553836100,3.6137,138.51,138.49,5.3]
[1728553836497,0.12502,138.53,138.49,11.11]
[1728553836692,3.6143,138.48,138.47,6.718]
[1728553836897,3.6143,138.48,138.47,17.828]
[1728553837301,3.6141,138.49,138.47,17.828]
[1728553837607,3.6141,138.49,138.48,11.11]
[1728553845910,0.12502,138.53,138.48,11.11]
[1728553846110,11.23502,138.53,138.48,11.11]
[1728553846808,3.614,138.49,138.48,11.11]
[1728553848208,3.6139,138.5,138.48,11.11]
[1728553848612,3.6139,138.5,138.49,11.11]
[1728553856535,11.11,138.52,138.47,5.3]
[1728553856736,3.6145,138.47,138.46,1.3355]
[1728553857032,3.6145,138.47,138.46,12.4455]
[1728553858228,3.6145,138.47,138.46,1.3355]
[1728553858435,3.6145,138.47,138.46,12.4455]
[1728553863430,3.6145,138.48,138.46,12.4455]
[1728553863630,3.6145,138.48,138.47,11.11]
[1728553867431,16.41,138.51,138.46,11.11]
[1728553867636,3.6146,138.47,138.46,11.11]
[1728553867837,11.11,138.5,138.43,5.3]
[1728553868041,11.11,138.5,138.45,11.11]
[1728553868244,3.6148,138.46,138.45,11.11]
[1728553868933,3.6146,138.47,138.45,14.7249]
[1728553869133,3.6146,138.47,138.46,11.11]
[1728553871346,3.6144,138.48,138.46,11.11]
[1728553871639,3.6144,138.48,138.46,14.7247]
[1728553871834,16.41,138.52,138.46,14.7247]
[1728553872443,3.6141,138.49,138.46,14.7247]
[1728553872639,3.6141,138.49,138.48,11.11]
[1728553875841,16.41,138.52,138.47,11.11]
[1728553876041,3.6145,138.48,138.47,11.11]
[1728553876442,20.00353473,138.52,138.47,11.11]
[1728553876649,11.11,138.51,138.47,11.11]
[1728553876842,11.11,138.48,138.42,6.6765]
[1728553877146,11.11,138.48,138.43,11.11]
[1728553877443,3.6153,138.44,138.43,11.11]
[1728553879950,11.11,138.48,138.43,11.11]
[1728553880138,3.6152,138.45,138.44,11.11]
[1728553881041,5.3,138.49,138.44,11.11]
[1728553881239,3.6145,138.47,138.46,11.11]
[1728553882050,3.6135,138.51,138.48,3.6142]
[1728553882246,0.12502,138.53,138.5,11.11]
[1728553883742,3.6132,138.52,138.5,11.11]
[1728553884642,0.12502,138.53,138.5,11.11]
[1728553884842,3.6132,138.52,138.5,11.11]
[1728553885843,3.6132,138.52,138.5,14.7237]
[1728553886149,3.6132,138.52,138.5,11.11]
[1728553886942,3.6135,138.51,138.5,11.11]
[1728553888351,0.12502,138.53,138.5,11.11]
[1728553888547,3.6133,138.52,138.5,11.11]
[1728553889147,3.6135,138.51,138.5,11.11]
[1728553891347,0.12502,138.53,138.5,11.11]
[1728553891648,3.73802,138.53,138.52,11.11]
[1728553904864,3.73802,138.53,138.51,3.6134]
[1728553905063,3.73802,138.53,138.52,11.11]
[1728553907275,3.73802,138.53,138.51,3.6134]
[1728553907469,3.73802,138.53,138.52,11.11]
[1728553908067,0.12502,138.53,138.52,14.7232]
[1728553911968,3.73802,138.53,138.52,11.11]
[1728553916169,0.12502,138.53,138.52,11.11]
[1728553916476,0.12502,138.53,138.52,14.7232]
[1728553929181,0.12502,138.53,138.52,16.1166]
[1728553929980,0.12502,138.59,138.55,3.6123]
[1728553930284,3.6116,138.58,138.57,11.11]
[1728553931382,3.73642,138.59,138.57,11.11]
[1728553931587,0.12502,138.59,138.58,11.11]
[1728553932083,3.73642,138.59,138.58,11.11]
[1728553932285,0.12502,138.59,138.58,14.7216]
[1728553933785,0.12502,138.59,138.58,16.0526]
[1728553936589,0.12502,138.59,138.58,1.331]
[1728553936782,0.12502,138.59,138.58,11.11]
[1728553936983,3.73652,138.59,138.58,11.11]
[1728553939800,0.12502,138.59,138.58,11.11]
[1728553941892,3.73652,138.59,138.58,11.11]
[1728553942785,0.12502,138.59,138.58,11.11]
[1728553943089,0.12502,138.59,138.58,14.7216]
[1728553945886,3.6105,138.63,138.58,11.11]
[1728553946092,3.6105,138.63,138.62,11.11]
[1728553946785,3.6102,138.64,138.62,11.11]
[1728553946991,3.6102,138.64,138.63,11.11]
[1728553947591,3.6102,138.64,138.62,11.11]
[1728553948187,0.12502,138.65,138.63,16.39]
[1728553948383,0.12502,138.65,138.64,14.7201]
[1728553951880,0.12502,138.65,138.63,5.28]
[1728553952094,0.12502,138.65,138.61,5.28]
[1728553952285,0.12502,138.65,138.62,11.11]
[1728553952691,3.6103,138.63,138.62,11.11]
[1728553952889,11.23502,138.65,138.61,11.11]
[1728553953197,3.6108,138.62,138.61,11.11]
[1728553957600,11.23502,138.65,138.59,6.7107]
[1728553957799,11.23502,138.65,138.6,11.11]
[1728553958495,0.12502,138.65,138.58,5.28]
[1728553958801,11.11,138.63,138.58,16.39]
[1728553959703,3.6109,138.61,138.58,20.0014]
[1728553959903,11.11,138.64,138.58,16.39]
[1728553960296,3.6108,138.62,138.59,3.6113]
[1728553960491,11.11,138.64,138.59,3.6113]
[1728553960903,11.11,138.64,138.59,14.7213]
[1728553962402,3.6107,138.61,138.59,14.7213]
[1728553967711,3.6107,138.61,138.59,11.11]
[1728553976230,3.6107,138.61,138.59,14.7211]
[1728553981429,11.11,138.64,138.59,14.7211]
[1728553981629,3.6105,138.62,138.6,11.11]
[1728553981830,3.6105,138.62,138.6,14.7208]
[1728553982640,0.12502,138.65,138.61,11.11]
[1728553982830,0.12502,138.65,138.63,11.11]
[1728553983332,11.11,138.64,138.59,5.28]
[1728553983533,11.11,138.64,138.59,16.39]
[1728553983836,3.6107,138.61,138.59,20.0011]
[1728553984339,3.6105,138.62,138.59,20.0011]
[1728553984837,3.6105,138.62,138.6,11.11]
[1728553985033,3.6105,138.62,138.6,14.7207]
[1728553986434,3.6106,138.61,138.59,8.8911]
[1728553986735,3.6106,138.61,138.6,11.11]
[1728553988840,3.6106,138.61,138.59,5.28]
[1728553989143,3.6111,138.6,138.59,16.39]
[1728553990941,3.6111,138.6,138.59,11.11]
[1728553991241,3.6113,138.59,138.57,11.11]
[1728553992440,3.6113,138.59,138.57,14.7216]
[1728553992635,3.6113,138.59,138.57,11.11]
[1728553992934,3.6114,138.58,138.57,11.11]
[1728553994636,11.11,138.58,138.52,1.3597]
[1728553994840,11.11,138.57,138.53,5.40502]
[1728553995241,3.6121,138.56,138.53,5.40502]
[1728553995951,3.6122,138.55,138.53,9.01772]
[1728553996244,3.6122,138.55,138.53,5.40502]
[1728553996633,3.6122,138.55,138.53,0.12502]
[1728553997340,11.11,138.57,138.53,0.12502]
[1728553997546,3.6124,138.54,138.53,0.12502]
[1728554003033,3.6124,138.54,138.53,11.23502]
[1728554006844,3.6124,138.54,138.53,0.12502]
[1728554020051,14.7224,138.54,138.53,0.12502]
[1728554028055,3.6124,138.54,138.53,0.12502]
[1728554028261,14.7224,138.54,138.53,0.12502]
[1728554029564,14.7224,138.54,138.48,3.6139]
[1728554029565,3.614,138.48,138.47,0.12502]
[1728554029753,11.11,138.48,138.41,3.00102]
[1728554030061,11.11,138.43,138.41,6.61672]
[1728554030760,11.11,138.43,138.41,0.12502]
[1728554031058,11.11,138.42,138.41,0.12502]
[1728554031260,14.7256,138.42,138.41,0.12502]
[1728554032154,20.0056,138.42,138.41,0.12502]
[1728554032352,11.11,138.38,138.36,5.28]
[1728554032552,5.28,138.42,138.36,5.28]
[1728554032757,11.11,138.4,138.36,5.28]
[1728554032958,5.28,138.42,138.36,5.28]
[1728554033158,11.11,138.4,138.36,6.7407]
[1728554033361,14.7261,138.4,138.37,3.6168]
[1728554033656,5.28,138.42,138.36,6.7407]
[1728554033657,11.11,138.39,138.36,6.7407]
[1728554033858,3.6167,138.38,138.36,6.7407]
[1728554034057,14.7267,138.38,138.36,1.4607]
[1728554035261,3.6169,138.37,138.36,1.4607]
[1728554035769,3.6169,138.37,138.35,0.12502]
[1728554037468,11.11,138.39,138.35,0.12502]
[1728554037770,3.6167,138.38,138.35,0.12502]
[1728554038161,3.6167,138.38,138.35,3.74242]
[1728554040658,5.28,138.42,138.36,11.11]
[1728554040857,3.6163,138.4,138.37,14.7269]
[1728554042763,3.6163,138.4,138.38,3.6166]
[1728554043666,3.6163,138.4,138.37,11.11]
[1728554043970,3.6163,138.4,138.37,3.6168]
[1728554044669,14.7263,138.4,138.37,3.6168]
[1728554045268,3.6163,138.4,138.37,14.7268]
[1728554045475,3.6157,138.42,138.39,3.6163]
[1728554045862,16.39,138.43,138.37,13.8381]
[1728554046070,3.616,138.41,138.37,13.8381]
[1728554046578,11.11,138.42,138.37,2.7281]
[1728554046766,11.11,138.38,138.37,1.4062]
[1728554046962,11.11,138.38,138.35,0.12502]
[1728554047376,14.7267,138.38,138.35,3.74232]
[1728554049270,3.6167,138.38,138.35,14.85232]
[1728554049970,3.6167,138.38,138.35,3.74232]
[1728554050169,3.6169,138.37,138.35,3.74232]
[1728554050670,3.6168,138.38,138.35,3.74232]
[1728554052180,3.6168,138.38,138.36,3.6171]
[1728554054674,11.11,138.41,138.37,11.11]
[1728554055275,3.6162,138.4,138.38,3.6165]
[1728554056788,3.616,138.41,138.37,11.11]
[1728554057081,3.616,138.41,138.35,0.12502]
[1728554057082,11.11,138.41,138.36,11.11]
[1728554057282,3.6163,138.4,138.36,11.11]
[1728554057583,11.11,138.4,138.37,3.6168]
[1728554058082,3.6162,138.4,138.36,11.11]
[1728554058280,3.6162,138.4,138.38,14.7266]
[1728554059381,3.6162,138.4,138.38,3.6166]
[1728554064182,14.7262,138.4,138.37,4.9608]
[1728554064480,3.6164,138.39,138.37,4.9608]
[1728554067490,14.7263,138.4,138.37,4.9608]
[1728554067872,76.01985775,138.46,138.37,1.344]
[1728554068079,11.11,138.43,138.39,3.6162]
[1728554068576,3.6157,138.42,138.39,3.6162]
[1728554068980,76.01985775,138.46,138.39,11.11]
[1728554069180,76.01985775,138.46,138.37,2.7335]
[1728554069181,3.6153,138.44,138.41,11.11]
[1728554070087,3.6154,138.43,138.41,14.7257]
[1728554071076,76.01985775,138.46,138.41,11.11]
[1728554071283,3.6151,138.44,138.41,11.11]
[1728554072187,3.6151,138.44,138.41,14.7257]
[1728554073076,11.11,138.45,138.41,3.6157]
[1728554073278,3.6154,138.43,138.41,3.6157]
[1728554073981,3.6151,138.44,138.42,3.6155]
[1728554076491,11.11,138.46,138.42,11.11]
[1728554076688,3.6149,138.45,138.43,3.6153]
[1728554078992,11.11,138.45,138.41,3.6156]
[1728554079294,11.11,138.44,138.4,11.11]
[1728554079990,14.7253,138.44,138.41,3.6157]
[1728554080492,0.12502,138.47,138.37,2.7335]
[1728554080684,11.11,138.42,138.38,5.28]
[1728554081388,3.616,138.41,138.38,8.8965]
[1728554081897,11.11,138.42,138.37,13.8435]
[1728554082094,3.6164,138.39,138.37,1.344]
[1728554082400,14.7264,138.39,138.37,1.344]
[1728554082892,11.11,138.39,138.37,1.344]
[1728554083102,3.6166,138.38,138.37,1.344]
[1728554085190,14.7265,138.39,138.37,1.344]
[1728554085393,3.6165,138.39,138.37,1.344]
[1728554085590,3.6165,138.39,138.37,4.9608]
[1728554092193,14.7268,138.38,138.36,5.28]
[1728554093098,14.7268,138.38,138.36,8.8971]
[1728554093304,3.6168,138.38,138.36,8.8971]
[1728554094002,3.6168,138.38,138.36,3.6171]
[1728554096509,3.6168,138.38,138.36,14.7271]
[1728554099515,3.6168,138.38,138.36,3.6171]
[1728554099701,14.7265,138.39,138.36,3.6171]
[1728554100011,3.6165,138.39,138.36,11.11]
[1728554100311,3.6165,138.39,138.37,3.6169]
[1728554112919,11.11,138.4,138.35,0.12502]
[1728554113125,3.617,138.37,138.35,3.74232]
[1728554113524,11.11,138.39,138.35,3.74232]
[1728554114027,3.6167,138.38,138.35,3.74232]
[1728554114323,11.11,138.38,138.35,0.12502]
[1728554114624,11.11,138.37,138.35,0.12502]
[1728554115119,3.6171,138.36,138.35,0.12502]
[1728554115321,14.7271,138.36,138.35,0.12502]
[1728554120128,3.6171,138.36,138.35,0.12502]
[1728554120324,3.6168,138.38,138.35,11.23502]
[1728554120522,5.28,138.42,138.36,11.11]
[1728554120719,16.39,138.42,138.37,3.6168]